[Event "*** Titled Tuesday Blitz"]
[Site "Chess.com"]
[Date "2020.11.24"]
[Round "11"]
[White "vinniethepooh"]
[Black "Guachiney"]
[Result "0-1"]
[WhiteElo "2611"]
[BlackElo "2759"]
[TimeControl "180+1"]
[EndTime "12:25:39 PST"]
[Termination "Guachiney won on time"]

1. d4 {[%clk 0:03:00.9]} 1... d6 {[%clk 0:02:59.8]} 2. c4 {[%clk 0:03:00.4]}
2... f5 {[%clk 0:02:59.9]} 3. g3 {[%clk 0:02:57.7]} 3... Nf6 {[%clk 0:03:00.1]}
4. Bg2 {[%clk 0:02:58.3]} 4... g6 {[%clk 0:03:00.7]} 5. b3 {[%clk 0:02:58.8]}
5... Bg7 {[%clk 0:03:00.9]} 6. Bb2 {[%clk 0:02:58.9]} 6... O-O {[%clk
0:03:01.4]} 7. Nf3 {[%clk 0:02:59.2]} 7... c6 {[%clk 0:03:01.5]} 8. O-O {[%clk
0:02:59.5]} 8... Na6 {[%clk 0:02:55.7]} 9. Nbd2 {[%clk 0:02:59.1]} 9... e5
{[%clk 0:02:55.3]} 10. dxe5 {[%clk 0:02:57.2]} 10... Nd7 {[%clk 0:02:55.3]} 11.
e4 {[%clk 0:02:35.4]} 11... f4 {[%clk 0:02:52.9]} 12. a3 {[%clk 0:01:38.2]}
12... Nxe5 {[%clk 0:02:41.4]} 13. Nxe5 {[%clk 0:01:24.7]} 13... dxe5 {[%clk
0:02:40]} 14. b4 {[%clk 0:01:08.4]} 14... Be6 {[%clk 0:02:39.3]} 15. Qc2 {[%clk
0:01:03.4]} 15... Qc7 {[%clk 0:02:08.6]} 16. Rad1 {[%clk 0:00:58.1]} 16... Qf7
{[%clk 0:02:04.1]} 17. c5 {[%clk 0:00:26.4]} 17... Nc7 {[%clk 0:01:54.5]} 18.
Qc1 {[%clk 0:00:21.5]} 18... Rae8 {[%clk 0:01:33.1]} 19. Nf3 {[%clk 0:00:20.6]}
19... Bg4 {[%clk 0:01:30.8]} 20. h3 {[%clk 0:00:20]} 20... Bxf3 {[%clk 0:01:28]}
21. Bxf3 {[%clk 0:00:20.9]} 21... fxg3 {[%clk 0:01:28.3]} 22. fxg3 {[%clk
0:00:21.6]} 22... Qe7 {[%clk 0:01:14.8]} 23. Bg4 {[%clk 0:00:19.5]} 23... Rxf1+
{[%clk 0:01:12.6]} 24. Rxf1 {[%clk 0:00:18.5]} 24... h5 {[%clk 0:01:06.2]} 25.
Be2 {[%clk 0:00:17.5]} 25... Ne6 {[%clk 0:01:01.8]} 26. Bc4 {[%clk 0:00:17.3]}
26... Kh7 {[%clk 0:01:01.2]} 27. Qe3 {[%clk 0:00:13.2]} 27... a6 {[%clk
0:00:52.7]} 28. Qf3 {[%clk 0:00:11.5]} 28... Ng5 {[%clk 0:00:50.9]} 29. Qg2
{[%clk 0:00:09.6]} 29... Rf8 {[%clk 0:00:44.9]} 30. Rxf8 {[%clk 0:00:08.6]}
30... Qxf8 {[%clk 0:00:45.8]} 31. Be2 {[%clk 0:00:05.5]} 31... Qf7 {[%clk
0:00:41.3]} 32. h4 {[%clk 0:00:05.7]} 32... Qb3 {[%clk 0:00:38.6]} 33. hxg5
{[%clk 0:00:03.1]} 33... Qxb2 {[%clk 0:00:38.5]} 34. Qf3 {[%clk 0:00:03.4]}
34... Qc1+ {[%clk 0:00:34.7]} 35. Kg2 {[%clk 0:00:03.7]} 35... Qxg5 {[%clk
0:00:35.6]} 36. g4 {[%clk 0:00:03.9]} 36... h4 {[%clk 0:00:35.3]} 37. Kh3 {[%clk
0:00:04.4]} 37... Bf6 {[%clk 0:00:34.5]} 38. Bc4 {[%clk 0:00:03.1]} 38... Kg7
{[%clk 0:00:34.5]} 39. Be2 {[%clk 0:00:03.2]} 39... Qd2 {[%clk 0:00:27]} 40. Bc4
{[%clk 0:00:02.5]} 40... Qd7 {[%clk 0:00:23.9]} 41. Qd3 {[%clk 0:00:01.7]} 41...
Qe7 {[%clk 0:00:19.9]} 42. Qf3 {[%clk 0:00:02.6]} 42... Bg5 {[%clk 0:00:19.9]}
43. Qd3 {[%clk 0:00:02.9]} 43... Qf6 {[%clk 0:00:18.5]} 44. Qf1 {[%clk
0:00:02.6]} 44... Bf4 {[%clk 0:00:15.8]} 45. Qf3 {[%clk 0:00:02.5]} 45... Qg5
{[%clk 0:00:13.1]} 46. Qd3 {[%clk 0:00:02.9]} 46... Bd2 {[%clk 0:00:10.1]} 47.
Qd7+ {[%clk 0:00:02.6]} 47... Kh6 {[%clk 0:00:08.6]} 48. Qd3 {[%clk 0:00:03.5]}
48... Qf4 {[%clk 0:00:06.6]} 49. Be6 {[%clk 0:00:01.9]} 49... Be3 {[%clk
0:00:06.7]} 50. Qe2 {[%clk 0:00:01.2]} 50... Qxe4 {[%clk 0:00:06.4]} 0-1

[Event "*** Titled Tuesday Blitz"]
[Site "Chess.com"]
[Date "2020.11.24"]
[Round "11"]
[White "orestn"]
[Black "esskeettit"]
[Result "1-0"]
[WhiteElo "2310"]
[BlackElo "2439"]
[TimeControl "180+1"]
[EndTime "12:25:42 PST"]
[Termination "orestn won by resignation"]

1. e4 {[%clk 0:03:00.9]} 1... c5 {[%clk 0:02:58.6]} 2. Nf3 {[%clk 0:03:00.5]}
2... Nc6 {[%clk 0:02:58.8]} 3. d4 {[%clk 0:03:00.8]} 3... cxd4 {[%clk
0:02:59.7]} 4. Nxd4 {[%clk 0:03:01.1]} 4... g6 {[%clk 0:03:00.6]} 5. c4 {[%clk
0:03:00.5]} 5... Nf6 {[%clk 0:02:59.5]} 6. Nc3 {[%clk 0:03:00]} 6... d6 {[%clk
0:03:00]} 7. Bg5 {[%clk 0:02:59.6]} 7... Bg7 {[%clk 0:02:57.5]} 8. f3 {[%clk
0:02:44.6]} 8... Nxd4 {[%clk 0:02:55.1]} 9. Qxd4 {[%clk 0:02:44]} 9... O-O
{[%clk 0:02:55.1]} 10. Qd2 {[%clk 0:02:44.4]} 10... a5 {[%clk 0:02:49.3]} 11.
Rc1 {[%clk 0:02:42.2]} 11... a4 {[%clk 0:02:49.5]} 12. Be2 {[%clk 0:02:38.1]}
12... Qa5 {[%clk 0:02:48.9]} 13. Rc2 {[%clk 0:02:37.9]} 13... Be6 {[%clk
0:02:46.7]} 14. Nd5 {[%clk 0:02:34.4]} 14... Qxd2+ {[%clk 0:02:35.8]} 15. Kxd2
{[%clk 0:02:34.6]} 15... Bxd5 {[%clk 0:02:30.6]} 16. cxd5 {[%clk 0:02:32.8]}
16... Rfc8 {[%clk 0:02:28.5]} 17. Rhc1 {[%clk 0:02:30.5]} 17... Rxc2+ {[%clk
0:02:27]} 18. Rxc2 {[%clk 0:02:29.8]} 18... Rb8 {[%clk 0:02:14.8]} 19. Bb5
{[%clk 0:02:23.9]} 19... Ra8 {[%clk 0:02:14.1]} 20. Rc7 {[%clk 0:02:12.4]} 20...
h6 {[%clk 0:02:12.9]} 21. Be3 {[%clk 0:02:03.3]} 21... Nh7 {[%clk 0:01:55]} 22.
Rxe7 {[%clk 0:01:53.2]} 22... Bxb2 {[%clk 0:01:53.6]} 23. Rxb7 {[%clk
0:01:52.5]} 23... Rc8 {[%clk 0:01:50.8]} 24. Bc6 {[%clk 0:01:51.6]} 24... a3
{[%clk 0:01:42.4]} 25. Bxh6 {[%clk 0:01:48.5]} 25... Nf6 {[%clk 0:01:37.7]} 26.
Be3 {[%clk 0:01:45.3]} 26... Be5 {[%clk 0:01:24.9]} 27. g3 {[%clk 0:01:40.8]}
27... Kg7 {[%clk 0:01:21.3]} 28. Ra7 {[%clk 0:01:36.1]} 28... Bb2 {[%clk
0:01:20.4]} 29. Kd3 {[%clk 0:01:27.1]} 29... Rb8 {[%clk 0:01:12.7]} 30. Rb7
{[%clk 0:01:23.7]} 30... Rd8 {[%clk 0:01:05]} 31. h4 {[%clk 0:01:18.2]} 31...
Nh5 {[%clk 0:01:03.9]} 32. Bf2 {[%clk 0:01:18.2]} 32... Be5 {[%clk 0:00:57.5]}
33. f4 {[%clk 0:01:17.4]} 33... Bb2 {[%clk 0:00:57.3]} 34. Ke3 {[%clk
0:01:15.1]} 34... Nf6 {[%clk 0:00:56.6]} 35. Kf3 {[%clk 0:01:14.1]} 35... Ba1
{[%clk 0:00:48.8]} 36. g4 {[%clk 0:01:12.3]} 36... Bb2 {[%clk 0:00:46.2]} 37. g5
{[%clk 0:01:04.1]} 37... Nh5 {[%clk 0:00:46]} 38. Be3 {[%clk 0:00:59.2]} 38...
Rc8 {[%clk 0:00:26.3]} 39. Bd2 {[%clk 0:00:52.7]} 39... Rd8 {[%clk 0:00:21.6]}
40. Bb4 {[%clk 0:00:50.3]} 40... Bc1 {[%clk 0:00:21.8]} 41. Ra7 {[%clk
0:00:46.4]} 41... Bxf4 {[%clk 0:00:20.6]} 42. Bxa3 {[%clk 0:00:45.3]} 42... Be5
{[%clk 0:00:20.6]} 43. Bb4 {[%clk 0:00:40.4]} 43... Nf4 {[%clk 0:00:19.6]} 44.
a4 {[%clk 0:00:38.9]} 44... Rh8 {[%clk 0:00:18.8]} 45. Rb7 {[%clk 0:00:32.6]}
45... Rxh4 {[%clk 0:00:18.6]} 46. a5 {[%clk 0:00:33.5]} 46... Rh3+ {[%clk
0:00:18.9]} 47. Kf2 {[%clk 0:00:33]} 47... Nd3+ {[%clk 0:00:18.6]} 48. Kg2
{[%clk 0:00:32.6]} 48... Rh2+ {[%clk 0:00:17.4]} 49. Kf3 {[%clk 0:00:32.9]}
49... Rh3+ {[%clk 0:00:16.7]} 50. Ke2 {[%clk 0:00:33.1]} 50... Nf4+ {[%clk
0:00:15.6]} 51. Kd2 {[%clk 0:00:32.4]} 51... Rh2+ {[%clk 0:00:14.4]} 52. Kc1
{[%clk 0:00:31.3]} 52... Nd3+ {[%clk 0:00:13.8]} 53. Kd1 {[%clk 0:00:31.7]}
53... Bf4 {[%clk 0:00:11.8]} 54. a6 {[%clk 0:00:27.2]} 54... Nb2+ {[%clk
0:00:11.5]} 55. Ke1 {[%clk 0:00:26]} 55... Nd3+ {[%clk 0:00:07.9]} 56. Kf1
{[%clk 0:00:25]} 56... Rf2+ {[%clk 0:00:06.8]} 57. Kg1 {[%clk 0:00:24.6]} 57...
Bh2+ {[%clk 0:00:06.7]} 58. Kh1 {[%clk 0:00:23.7]} 58... Be5 {[%clk 0:00:04.5]}
59. a7 {[%clk 0:00:20.5]} 59... Ne1 {[%clk 0:00:02.9]} 60. Bxe1 {[%clk 0:00:16]}
60... Rf1+ {[%clk 0:00:03]} 61. Kg2 {[%clk 0:00:15.5]} 61... Rxe1 {[%clk
0:00:03.2]} 62. a8=Q {[%clk 0:00:15.6]} 62... Re2+ {[%clk 0:00:04.1]} 63. Kf3
{[%clk 0:00:15.4]} 1-0

[Event "*** Titled Tuesday Blitz"]
[Site "Chess.com"]
[Date "2020.11.24"]
[Round "11"]
[White "JoliyRoger"]
[Black "lefonghua"]
[Result "1-0"]
[WhiteElo "2382"]
[BlackElo "2480"]
[TimeControl "180+1"]
[EndTime "12:25:44 PST"]
[Termination "JoliyRoger won by resignation"]

1. Nf3 {[%clk 0:03:00.9]} 1... Nf6 {[%clk 0:03:00]} 2. c4 {[%clk 0:03:01.2]}
2... g6 {[%clk 0:03:00.4]} 3. d4 {[%clk 0:03:01.7]} 3... Bg7 {[%clk 0:03:01]} 4.
Nc3 {[%clk 0:03:02.2]} 4... O-O {[%clk 0:03:01.5]} 5. e4 {[%clk 0:03:02.8]} 5...
d6 {[%clk 0:03:02.2]} 6. h3 {[%clk 0:03:03.4]} 6... c5 {[%clk 0:03:02.6]} 7. d5
{[%clk 0:03:03.8]} 7... e6 {[%clk 0:03:03.3]} 8. Bd3 {[%clk 0:03:04]} 8... exd5
{[%clk 0:03:03.7]} 9. cxd5 {[%clk 0:03:04.9]} 9... a6 {[%clk 0:03:02.1]} 10. a4
{[%clk 0:03:04.6]} 10... Nbd7 {[%clk 0:03:02.7]} 11. O-O {[%clk 0:03:05.1]}
11... Nh5 {[%clk 0:03:03.3]} 12. Re1 {[%clk 0:03:04.6]} 12... Ne5 {[%clk
0:03:02.8]} 13. Be2 {[%clk 0:03:05.2]} 13... Nxf3+ {[%clk 0:02:49.4]} 14. Bxf3
{[%clk 0:03:05.7]} 14... Qh4 {[%clk 0:02:50]} 15. Bg4 {[%clk 0:02:20.3]} 15...
f5 {[%clk 0:02:33.3]} 16. exf5 {[%clk 0:01:43.8]} 16... Bxf5 {[%clk 0:02:34.2]}
17. Bxf5 {[%clk 0:01:44]} 17... Rxf5 {[%clk 0:02:20.8]} 18. Be3 {[%clk
0:01:44.5]} 18... Raf8 {[%clk 0:02:12.9]} 19. Qg4 {[%clk 0:01:43.7]} 19... Qd8
{[%clk 0:02:05.3]} 20. Rad1 {[%clk 0:01:24.8]} 20... Nf4 {[%clk 0:01:54]} 21.
Bxf4 {[%clk 0:01:11.2]} 21... Rxf4 {[%clk 0:01:54.9]} 22. Qe6+ {[%clk
0:01:11.5]} 22... Kh8 {[%clk 0:01:52.1]} 23. Ne4 {[%clk 0:01:04.5]} 23... Be5
{[%clk 0:01:28.8]} 24. g3 {[%clk 0:00:56.7]} 24... Rf3 {[%clk 0:01:17.1]} 25.
Kg2 {[%clk 0:00:53.4]} 25... R3f5 {[%clk 0:01:00.7]} 26. f4 {[%clk 0:00:31.1]}
26... Re8 {[%clk 0:00:59.3]} 27. fxe5 {[%clk 0:00:29.4]} 27... Rxe6 {[%clk
0:00:59.2]} 28. dxe6 {[%clk 0:00:28.6]} 28... Rxe5 {[%clk 0:00:58.2]} 29. Nxd6
{[%clk 0:00:20.3]} 29... Rxe1 {[%clk 0:00:45.5]} 30. Nf7+ {[%clk 0:00:19.9]}
30... Kg7 {[%clk 0:00:45.9]} 31. Rxd8 {[%clk 0:00:20.3]} 31... Rxe6 {[%clk
0:00:45.8]} 32. Nd6 {[%clk 0:00:20.6]} 32... Re2+ {[%clk 0:00:45.4]} 33. Kf3
{[%clk 0:00:21.1]} 33... Rxb2 {[%clk 0:00:45.5]} 34. Rd7+ {[%clk 0:00:21.7]}
34... Kf6 {[%clk 0:00:45.7]} 35. Rxb7 {[%clk 0:00:22.4]} 35... Ra2 {[%clk
0:00:44.2]} 36. Ne4+ {[%clk 0:00:22.7]} 36... Ke5 {[%clk 0:00:42.7]} 37. Nxc5
{[%clk 0:00:23.3]} 37... Kd5 {[%clk 0:00:42.7]} 38. Rc7 {[%clk 0:00:21.7]} 38...
a5 {[%clk 0:00:37.4]} 39. Rc8 {[%clk 0:00:21.9]} 39... Rc2 {[%clk 0:00:35]} 40.
Rd8+ {[%clk 0:00:20.2]} 40... Kc4 {[%clk 0:00:33.1]} 41. Ne4 {[%clk 0:00:20.2]}
41... Kb4 {[%clk 0:00:31.5]} 42. Rd4+ {[%clk 0:00:20.8]} 42... Ka3 {[%clk
0:00:31.8]} 43. h4 {[%clk 0:00:21.2]} 43... h5 {[%clk 0:00:29.5]} 44. Kf4 {[%clk
0:00:20.6]} 44... Rc6 {[%clk 0:00:25.5]} 45. Kg5 {[%clk 0:00:17.9]} 45... Kb3
{[%clk 0:00:25.8]} 46. Nf6 {[%clk 0:00:18]} 46... Rc3 {[%clk 0:00:24.6]} 47. Kf4
{[%clk 0:00:16.7]} 47... Rc6 {[%clk 0:00:21.2]} 48. Nd5 {[%clk 0:00:16.7]} 48...
Rd6 {[%clk 0:00:20.2]} 49. Ke5 {[%clk 0:00:15.7]} 49... Rd8 {[%clk 0:00:20]} 50.
Rd3+ {[%clk 0:00:14.7]} 50... Kb2 {[%clk 0:00:20.5]} 51. Rd4 {[%clk 0:00:14.8]}
51... Kb3 {[%clk 0:00:20.4]} 52. Nb6 {[%clk 0:00:14.6]} 52... Rb8 {[%clk
0:00:18.4]} 53. Rd6 {[%clk 0:00:13.4]} 53... Re8+ {[%clk 0:00:17.2]} 54. Kf6
{[%clk 0:00:13.7]} 54... Re3 {[%clk 0:00:17.2]} 55. Kxg6 {[%clk 0:00:14.2]}
55... Rxg3+ {[%clk 0:00:17.3]} 56. Kxh5 {[%clk 0:00:15.1]} 56... Rg1 {[%clk
0:00:17.4]} 57. Kh6 {[%clk 0:00:15.3]} 57... Kb4 {[%clk 0:00:18]} 58. h5 {[%clk
0:00:15.7]} 58... Kc5 {[%clk 0:00:18.7]} 59. Rg6 {[%clk 0:00:16.1]} 59... Re1
{[%clk 0:00:17.1]} 60. Nd7+ {[%clk 0:00:16.6]} 60... Kb4 {[%clk 0:00:17.1]} 61.
Rg4+ {[%clk 0:00:17.2]} 61... Ka3 {[%clk 0:00:17.6]} 62. Nf6 {[%clk 0:00:17.6]}
62... Re6 {[%clk 0:00:17.5]} 63. Kg6 {[%clk 0:00:18.1]} 63... Rd6 {[%clk
0:00:17.7]} 64. h6 {[%clk 0:00:18.7]} 64... Rd8 {[%clk 0:00:18.1]} 65. h7 {[%clk
0:00:19.4]} 65... Rb8 {[%clk 0:00:18.5]} 66. Ng8 {[%clk 0:00:19.8]} 66... Rb6+
{[%clk 0:00:18.6]} 67. Kh5 {[%clk 0:00:20.1]} 67... Rb1 {[%clk 0:00:18.3]} 68.
h8=Q {[%clk 0:00:19.6]} 68... Rh1+ {[%clk 0:00:18.4]} 69. Rh4 {[%clk 0:00:20.5]}
69... Rxh4+ {[%clk 0:00:17.7]} 70. Kxh4 {[%clk 0:00:21.2]} 70... Kxa4 {[%clk
0:00:18.6]} 1-0

[Event "*** Titled Tuesday Blitz"]
[Site "Chess.com"]
[Date "2020.11.24"]
[Round "11"]
[White "djano"]
[Black "IMAghasiyevKamal"]
[Result "0-1"]
[WhiteElo "2456"]
[BlackElo "2577"]
[TimeControl "180+1"]
[EndTime "12:25:45 PST"]
[Termination "IMAghasiyevKamal won on time"]

1. d4 {[%clk 0:03:00.9]} 1... d5 {[%clk 0:02:59.7]} 2. Nf3 {[%clk 0:03:00.3]}
2... Nf6 {[%clk 0:02:59.2]} 3. Bf4 {[%clk 0:03:00.4]} 3... e6 {[%clk 0:02:58.1]}
4. e3 {[%clk 0:02:59.8]} 4... Bd6 {[%clk 0:02:57.4]} 5. Bg3 {[%clk 0:02:57.1]}
5... c5 {[%clk 0:02:55.1]} 6. Nbd2 {[%clk 0:02:55.5]} 6... O-O {[%clk
0:02:51.8]} 7. c3 {[%clk 0:02:54.3]} 7... Qc7 {[%clk 0:02:48.5]} 8. Bd3 {[%clk
0:02:50.7]} 8... Nbd7 {[%clk 0:02:47.1]} 9. Qe2 {[%clk 0:02:33.3]} 9... e5
{[%clk 0:02:42.7]} 10. dxe5 {[%clk 0:02:33.6]} 10... Nxe5 {[%clk 0:02:42.5]} 11.
Nxe5 {[%clk 0:02:25.3]} 11... Bxe5 {[%clk 0:02:42.1]} 12. Nf3 {[%clk 0:02:08.7]}
12... Bxg3 {[%clk 0:02:35.7]} 13. hxg3 {[%clk 0:02:09.6]} 13... h6 {[%clk
0:02:35.9]} 14. Rh4 {[%clk 0:01:45.3]} 14... Bg4 {[%clk 0:02:29.1]} 15. Qc2
{[%clk 0:01:22.7]} 15... Rfe8 {[%clk 0:02:21.3]} 16. Bf5 {[%clk 0:01:19.2]}
16... Bxf5 {[%clk 0:01:44.8]} 17. Qxf5 {[%clk 0:01:20.1]} 17... Qb6 {[%clk
0:01:13]} 18. O-O-O {[%clk 0:01:17.3]} 18... Rad8 {[%clk 0:01:12.7]} 19. g4
{[%clk 0:01:13]} 19... Qe6 {[%clk 0:01:10]} 20. Qxe6 {[%clk 0:00:58.4]} 20...
Rxe6 {[%clk 0:01:10.1]} 21. Nd2 {[%clk 0:00:52.5]} 21... d4 {[%clk 0:01:04.8]}
22. exd4 {[%clk 0:00:41.1]} 22... cxd4 {[%clk 0:01:04.7]} 23. Nf3 {[%clk
0:00:41.1]} 23... Re2 {[%clk 0:01:01.2]} 24. g5 {[%clk 0:00:33]} 24... hxg5
{[%clk 0:00:58.9]} 25. Rhxd4 {[%clk 0:00:31.4]} 25... Rxd4 {[%clk 0:00:56.1]}
26. Rxd4 {[%clk 0:00:32.3]} 26... Rxf2 {[%clk 0:00:54.8]} 27. Nxg5 {[%clk
0:00:32.7]} 27... g6 {[%clk 0:00:52.8]} 28. Rd2 {[%clk 0:00:22.1]} 28... Rf5
{[%clk 0:00:47.9]} 29. Nf3 {[%clk 0:00:21.7]} 29... Kf8 {[%clk 0:00:43.6]} 30.
Kc2 {[%clk 0:00:22.1]} 30... Rf4 {[%clk 0:00:38.3]} 31. b4 {[%clk 0:00:19.6]}
31... b5 {[%clk 0:00:36.2]} 32. Rd6 {[%clk 0:00:17.8]} 32... Kg7 {[%clk
0:00:32.7]} 33. Ra6 {[%clk 0:00:17.8]} 33... Rg4 {[%clk 0:00:33.1]} 34. Ne1
{[%clk 0:00:17.2]} 34... Re4 {[%clk 0:00:30.9]} 35. Kd2 {[%clk 0:00:17.6]} 35...
Re7 {[%clk 0:00:30.7]} 36. a4 {[%clk 0:00:17.4]} 36... Ne4+ {[%clk 0:00:30.9]}
37. Kc2 {[%clk 0:00:14.9]} 37... bxa4 {[%clk 0:00:29.4]} 38. c4 {[%clk 0:00:14]}
38... Ng3 {[%clk 0:00:18.2]} 39. Kd2 {[%clk 0:00:12.1]} 39... Re2+ {[%clk
0:00:16.8]} 40. Kd1 {[%clk 0:00:12.6]} 40... Rb2 {[%clk 0:00:15.7]} 41. b5
{[%clk 0:00:12.2]} 41... Rb4 {[%clk 0:00:14.6]} 42. Rxa7 {[%clk 0:00:09.6]}
42... Rxc4 {[%clk 0:00:14.5]} 43. b6 {[%clk 0:00:10.2]} 43... Rb4 {[%clk
0:00:14.7]} 44. b7 {[%clk 0:00:10.4]} 44... a3 {[%clk 0:00:15.1]} 45. Nc2 {[%clk
0:00:10.4]} 45... Rb1+ {[%clk 0:00:14]} 46. Kd2 {[%clk 0:00:10.9]} 46... a2
{[%clk 0:00:14.5]} 47. Rxa2 {[%clk 0:00:09.8]} 47... Rxb7 {[%clk 0:00:14.1]} 48.
Ke3 {[%clk 0:00:09.1]} 48... Nf5+ {[%clk 0:00:12.7]} 49. Kf2 {[%clk 0:00:08.9]}
49... Rd7 {[%clk 0:00:12.2]} 50. Ne3 {[%clk 0:00:08.6]} 50... Nd6 {[%clk
0:00:10.8]} 51. Rc2 {[%clk 0:00:06.9]} 51... Ne4+ {[%clk 0:00:10.7]} 52. Kf3
{[%clk 0:00:07.2]} 52... Ng5+ {[%clk 0:00:10.9]} 53. Kf4 {[%clk 0:00:06.6]}
53... Ne6+ {[%clk 0:00:11]} 54. Kf3 {[%clk 0:00:07.2]} 54... Nd4+ {[%clk
0:00:11.2]} 0-1

[Event "*** Titled Tuesday Blitz"]
[Site "Chess.com"]
[Date "2020.11.24"]
[Round "11"]
[White "SchieberSpieler"]
[Black "zverr1"]
[Result "1/2-1/2"]
[WhiteElo "2367"]
[BlackElo "2510"]
[TimeControl "180+1"]
[EndTime "12:25:47 PST"]
[Termination "Game drawn by repetition"]

1. Nf3 {[%clk 0:03:00.9]} 1... Nf6 {[%clk 0:02:56.1]} 2. c4 {[%clk 0:03:01.2]}
2... g6 {[%clk 0:02:57]} 3. d4 {[%clk 0:03:01.5]} 3... Bg7 {[%clk 0:02:57.2]} 4.
g3 {[%clk 0:03:02.1]} 4... O-O {[%clk 0:02:57.4]} 5. Bg2 {[%clk 0:03:02.6]} 5...
d6 {[%clk 0:02:57.9]} 6. O-O {[%clk 0:03:03.3]} 6... Nbd7 {[%clk 0:02:58.8]} 7.
Qc2 {[%clk 0:03:03.5]} 7... e5 {[%clk 0:02:58.5]} 8. Rd1 {[%clk 0:03:04.1]} 8...
Re8 {[%clk 0:02:56.2]} 9. Nc3 {[%clk 0:03:02.4]} 9... c6 {[%clk 0:02:54.8]} 10.
e4 {[%clk 0:03:02.7]} 10... exd4 {[%clk 0:02:47.6]} 11. Nxd4 {[%clk 0:03:03.6]}
11... Nc5 {[%clk 0:02:48.5]} 12. Bf4 {[%clk 0:02:59.8]} 12... Qb6 {[%clk
0:02:26.6]} 13. Bxd6 {[%clk 0:02:39.4]} 13... Ncxe4 {[%clk 0:02:26.5]} 14. Nxe4
{[%clk 0:02:40.3]} 14... Nxe4 {[%clk 0:02:26]} 15. c5 {[%clk 0:02:21]} 15... Qb4
{[%clk 0:02:10.1]} 16. a3 {[%clk 0:02:20.6]} 16... Qa5 {[%clk 0:01:54.4]} 17.
Bxe4 {[%clk 0:02:18]} 17... Bg4 {[%clk 0:01:54.8]} 18. Bf3 {[%clk 0:02:15.8]}
18... h5 {[%clk 0:01:42.8]} 19. Bxg4 {[%clk 0:02:10.5]} 19... hxg4 {[%clk
0:01:43.7]} 20. b4 {[%clk 0:02:10.9]} 20... Qd8 {[%clk 0:01:43]} 21. Qd2 {[%clk
0:01:55.3]} 21... Qf6 {[%clk 0:01:38.5]} 22. Rac1 {[%clk 0:01:52.3]} 22... Re4
{[%clk 0:01:36.1]} 23. Nc2 {[%clk 0:01:45.7]} 23... Rae8 {[%clk 0:01:35.8]} 24.
Re1 {[%clk 0:01:42.9]} 24... Qf3 {[%clk 0:01:35.9]} 25. Rxe4 {[%clk 0:01:39.4]}
25... Rxe4 {[%clk 0:01:36.8]} 26. Re1 {[%clk 0:01:39.4]} 26... Bc3 {[%clk
0:01:36.9]} 27. Qc1 {[%clk 0:01:25.3]} 27... Bxe1 {[%clk 0:01:29.9]} 28. Nxe1
{[%clk 0:01:25.6]} 28... Qe2 {[%clk 0:01:27.6]} 29. Ng2 {[%clk 0:01:25.9]} 29...
Rc4 {[%clk 0:01:15.3]} 30. Qf1 {[%clk 0:01:11.4]} 30... Qxf1+ {[%clk 0:01:06.1]}
31. Kxf1 {[%clk 0:01:12.3]} 31... Rc1+ {[%clk 0:01:07]} 32. Ke2 {[%clk
0:01:12.5]} 32... Ra1 {[%clk 0:01:07.9]} 33. Ne3 {[%clk 0:01:08.3]} 33... Ra2+
{[%clk 0:01:06.4]} 34. Kd3 {[%clk 0:00:53.5]} 34... Rxa3+ {[%clk 0:01:05.4]} 35.
Kc4 {[%clk 0:00:53.3]} 35... f5 {[%clk 0:01:03.4]} 36. Be5 {[%clk 0:00:45.1]}
36... Ra2 {[%clk 0:01:02.1]} 37. Nd1 {[%clk 0:00:45.3]} 37... Rd2 {[%clk
0:01:01.8]} 38. Nc3 {[%clk 0:00:38.7]} 38... Rxf2 {[%clk 0:01:01.5]} 39. b5
{[%clk 0:00:38.2]} 39... cxb5+ {[%clk 0:00:54.6]} 40. Nxb5 {[%clk 0:00:39.1]}
40... Rxh2 {[%clk 0:00:52.7]} 41. Nd6 {[%clk 0:00:39.3]} 41... Rc2+ {[%clk
0:00:50.3]} 42. Kd5 {[%clk 0:00:37.2]} 42... g5 {[%clk 0:00:41.2]} 43. Nxf5
{[%clk 0:00:32.7]} 43... a5 {[%clk 0:00:40.4]} 44. Nd6 {[%clk 0:00:32.7]} 44...
a4 {[%clk 0:00:35.5]} 45. Nxb7 {[%clk 0:00:33]} 45... a3 {[%clk 0:00:36.1]} 46.
c6 {[%clk 0:00:33.2]} 46... a2 {[%clk 0:00:33.1]} 47. Nc5 {[%clk 0:00:32.4]}
47... Re2 {[%clk 0:00:26.1]} 48. Bf6 {[%clk 0:00:27.3]} 48... Kf7 {[%clk
0:00:25.3]} 49. Bc3 {[%clk 0:00:14.7]} 49... Rc2 {[%clk 0:00:20.2]} 50. c7
{[%clk 0:00:15.1]} 50... Rxc3 {[%clk 0:00:18.8]} 51. c8=Q {[%clk 0:00:15.5]}
51... Rxc5+ {[%clk 0:00:16.9]} 52. Kxc5 {[%clk 0:00:13.9]} 52... a1=Q {[%clk
0:00:17.8]} 53. Qxg4 {[%clk 0:00:13.8]} 53... Qe5+ {[%clk 0:00:16.3]} 54. Kc4
{[%clk 0:00:13.6]} 54... Kf6 {[%clk 0:00:13.8]} 55. Kd3 {[%clk 0:00:13]} 55...
Qf5+ {[%clk 0:00:13.3]} 56. Qe4 {[%clk 0:00:10.5]} 56... Qb5+ {[%clk 0:00:11.4]}
57. Ke3 {[%clk 0:00:10.4]} 57... Qe5 {[%clk 0:00:11.9]} 58. g4 {[%clk
0:00:09.9]} 58... Qg3+ {[%clk 0:00:11.2]} 59. Qf3+ {[%clk 0:00:09.9]} 59...
Qxf3+ {[%clk 0:00:10.2]} 60. Kxf3 {[%clk 0:00:10.8]} 60... Ke5 {[%clk
0:00:10.9]} 61. Ke3 {[%clk 0:00:11]} 61... Kd5 {[%clk 0:00:11.6]} 62. Kd3 {[%clk
0:00:11.4]} 62... Ke5 {[%clk 0:00:11.2]} 63. Ke3 {[%clk 0:00:11.8]} 63... Kd5
{[%clk 0:00:11.8]} 64. Kd3 {[%clk 0:00:12.4]} 64... Ke5 {[%clk 0:00:12.4]} 65.
Ke3 {[%clk 0:00:13]} 1/2-1/2